[Event "Kezmarok Chess Open 2022"]
[Site "Kezmarok"]
[Date "2022.09.25"]
[Round "2.4"]
[White "Dubessay, Bastien"]
[Black "Bochnickova, Simona"]
[Result "1-0"]
[ECO "D32"]
[WhiteElo "2259"]
[BlackElo "1903"]
[Annotator "TA"]
[PlyCount "63"]
[EventDate "2022.09.24"]
[EventType "swiss"]
[EventCountry "SVK"]
[SourceTitle "playchess.com"]
[Source "ChessBase"]
[SourceQuality "1"]
[TimeControl "40/5400+30:1800+30"]

{[%evp 9,63,41,80,87,98,76,87,76,91,76,81,77,79,85,83,79,75,76,76,81,79,88,91,82,85,97,89,89,100,81,86,84,86,80,79,78,63,50,90,93,90,81,122,93,174,153,230,174,224,214,210,206,287,210,282,272]} 1. d4 {[%emt 0:00:04]} d5 {[%emt 0:00:52]} 2. c4 {[%emt 0:00:10]} e6 {[%emt 0:00:04]} 3. Nc3 {[%emt 0:00:07]} c5 {[%emt 0:00:34]} 4. cxd5 {[%emt 0:01:20]} cxd4 {[%emt 0:00:07]} 5. Qxd4 {[%emt 0:00:21]} exd5 {[%emt 0:00:29]} 6. Qxd5 {[%emt 0:08:33] D32: Tarrasch Defence: Sidelines and lines without g3.} ({Reject} 6. Nxd5 $6 Nc6 7. Qd3 Nf6 $11) 6... Bd6 {[%emt 0:00:33] [#]} 7. Nf3 $146 {[%emt 0:06:00] White is more active.} ({Predecessor:} 7. Bd2 Nc6 8. Nb5 Bc7 9. Nf3 a6 10. Nxc7+ Qxc7 11. Rc1 Be6 12. Qg5 f6 13. Qe3 {1-0 (40) Grekhneva,Y (1419)-Guznenko,G (1410) Irkutsk 2012}) 7... Nf6 {[%emt 0:00:41]} 8. Qd1 {[%emt 0:00:35] White is better.} Nc6 {[%emt 0:02:08]} 9. g3 {[%emt 0:01:06]} O-O {[%emt 0:03:06]} 10. Bg2 {[%emt 0:00:39]} Qe7 {[%emt 0:03:39]} 11. O-O {[%emt 0:00:18]} Rd8 {[%emt 0:00:31][%cal Od6g3]} 12. Qa4 {[%emt 0:13:57]} Bb4 {[%emt 0:15:47]} 13. Bg5 {[%emt 0:11:10]} h6 {[%emt 0:10:52]} 14. Bxf6 {[%emt 0:00:20]} Qxf6 {[%emt 0:00:17]} 15. Rac1 {[%emt 0:00:09]} Be6 {[%emt 0:07:19]} 16. a3 {[%emt 0:03:45]} Bxc3 {[%emt 0:04:32]} 17. Rxc3 {[%emt 0:01:00]} Nd4 {[%emt 0:00:19]} 18. Nxd4 {[%emt 0:06:01]} Rxd4 {[%emt 0:00:17]} 19. Qa5 {[%emt 0:00:17]} Rad8 {[%emt 0:02:51]} 20. Bxb7 {[%emt 0:12:12]} Rd2 {[%emt 0:01:21][%csl LRb2,LRe2]} 21. Bf3 {[%emt 0:00:08]} Bh3 {[%emt 0:09:11] [#] Threatens to win with ...Rd1.} 22. Re1 {[%emt 0:01:35]} Rxb2 {[%emt 0:01:57]} 23. Rc7 {[%emt 0:02:23]} a6 {[%emt 0:05:49]} 24. Rc6 {[%emt 0:03:36]} Qd4 {[%emt 0:01:17]} 25. Rxa6 {[%emt 0:00:50]} Kh7 {[%emt 0:05:51]} 26. Rc6 {[%emt 0:08:21]} Rdb8 {[%emt 0:03:41]} (26... Rd7 $16 27. Rcc1 g6) 27. Qc3 {[%emt 0:02:51]} Qa4 {[%emt 0:02:56]} (27... Rd8 $16 28. Qxd4 Rxd4) 28. Rc4 {[%emt 0:00:37]} Qe8 {[%emt 0:01:30]} (28... Qb3 $142 29. Rc1 Kg8 30. Qxb3 R8xb3) 29. Rb4 $18 {[%emt 0:04:15]} R2xb4 {[%emt 0:02:41]} 30. axb4 {[%emt 0:00:02][%cal Ba3b4,Bb4b5][%mdl 32]} Qe7 {[%emt 0:02:51]} 31. Qc5 {[%emt 0:01:05]} Qd8 {[%emt 0:04:06]} 32. b5 {[%emt 0:04:06] Weighted Error Value: White=0.13 (very precise) /Black=0.25 (precise)} 1-0

[Event "Kezmarok Chess Open 2022"]
[Site "Kezmarok"]
[Date "2022.09.25"]
[Round "2.6"]
[White "Demeter, Peter"]
[Black "Mirowska, Oliwia"]
[Result "1-0"]
[ECO "A10"]
[WhiteElo "2067"]
[BlackElo "1856"]
[Annotator "NA RC"]
[PlyCount "119"]
[EventDate "2022.09.24"]
[EventType "swiss"]
[EventCountry "SVK"]
[SourceTitle "playchess.com"]
[Source "ChessBase"]
[SourceQuality "1"]
[TimeControl "40/5400+30:1800+30"]

1. c4 d6 2. g3 e5 3. Bg2 g6 4. Nc3 Bg7 5. Nf3 Nc6 6. O-O Nge7 7. d3 O-O 8. e4 h6 9. Be3 Be6 10. Qd2 Kh7 11. b3 f5 12. exf5 Nxf5 13. Ne4 Qe7 14. Rae1 Rae8 15. b4 Nxe3 16. fxe3 Nd8 17. Nc3 c6 18. Nh4 Bf6 19. Nf3 Nf7 20. h4 d5 21. cxd5 cxd5 22. e4 dxe4 23. Nxe4 Bg7 24. a3 b6 25. Qe3 Bc8 26. Nfd2 Nd6 27. Nxd6 Qxd6 28. Be4 Bf5 29. h5 Bxe4 30. Qxe4 Qd4+ 31. Qxd4 exd4 32. hxg6+ Kxg6 33. Ne4 Rxf1+ 34. Kxf1 Rf8+ 35. Ke2 Rc8 36. Kf3 Rc6 37. b5 Re6 38. Rc1 Bf8 39. a4 Bc5 40. Kf4 Be7 41. Rc6 Kf7 42. Rc7 Rg6 43. Rxa7 h5 44. Ke5 Ke8 45. Kxd4 h4 46. gxh4 Bxh4 47. Kd5 Be1 48. Rb7 Ba5 49. Nd6+ Kd8 50. Nc4 Rg5+ 51. Kc6 Bb4 52. Rd7+ Ke8 53. Nd6+ Bxd6 54. Rxd6 Ke7 55. Rd4 Rg6+ 56. Kc7 Rh6 57. a5 bxa5 58. b6 Rh5 59. Re4+ Kf8 60. b7 1-0

[Event "Kezmarok Chess Open 2022"]
[Site "Kezmarok"]
[Date "2022.09.25"]
[Round "2.7"]
[White "Jablonicky, Martin"]
[Black "Ropovik, Samuel"]
[Result "1-0"]
[ECO "A45"]
[WhiteElo "2344"]
[BlackElo "1497"]
[Annotator "TA"]
[PlyCount "65"]
[EventDate "2022.09.24"]
[EventType "swiss"]
[EventCountry "SVK"]
[SourceTitle "playchess.com"]
[Source "ChessBase"]
[SourceQuality "1"]
[TimeControl "40/5400+30:1800+30"]

{[%evp 14,65,16,25,58,51,49,60,83,68,82,52,50,14,20,16,54,43,45,47,65,44,67,21,45,-15,25,42,33,12,28,6,35,34,23,21,64,64,263,263,231,170,308,295,637,603,568,548,1132,1101,29969,29970,5285,1923]} 1. d4 {[%emt 0:00:12]} Nf6 {[%emt 0:03:01]} 2. Bg5 {[%emt 0:00:07]} e6 {[%emt 0:01:03]} 3. e4 {[%emt 0:00:06]} h6 {[%emt 0:00:44]} 4. Bxf6 {[%emt 0:00:06]} Qxf6 {[%emt 0:00:21]} 5. Nc3 {[%emt 0:03:19]} Bb4 {[%emt 0:03:03]} 6. Nge2 {[%emt 0:02:58]} d5 {[%emt 0:02:06]} 7. a3 {[%emt 0:00:18]} Bxc3+ {[%emt 0:01:26]} 8. Nxc3 {[%emt 0:00:03]} Qd8 {[%emt 0:03:15] [#] C12: French: Classical System: McCutcheon Variation.} 9. Qd3 $146 {[%emt 0:03:33]} ({Predecessor:} 9. Bd3 b6 10. O-O O-O 11. Qf3 Bb7 12. exd5 Bxd5 13. Nxd5 exd5 14. c4 c6 15. cxd5 Qxd5 16. Qxd5 cxd5 17. Rac1 Nd7 18. Rc7 Rfd8 19. Re1 Kf8 20. Bb5 Re8 21. Rxe8+ Rxe8 22. Rxd7 Re1+ 23. Bf1 {1-0 (23) Padurean,D (2011)-Homentcovschi,A (1396) Mamaia 2017}) 9... b6 {[%emt 0:05:42]} 10. O-O-O {[%emt 0:03:12]} Ba6 {[%emt 0:06:38] White is slightly better.} 11. Qg3 {[%emt 0:02:21]} O-O {[%emt 0:06:35]} 12. Bxa6 {[%emt 0:03:58]} Nxa6 {[%emt 0:01:30][%cal Bb8a6,Ba6c7,Bc7b5][%mdl 32]} 13. Rhe1 {[%emt 0:00:11]} c6 {[%emt 0:19:40]} 14. Re3 {[%emt 0:01:29]} Re8 {[%emt 0:16:04]} 15. h4 {[%emt 0:02:43]} Nc7 {[%emt 0:01:36]} 16. e5 {[%emt 0:00:08]} Nb5 {[%emt 0:01:58]} 17. f4 {[%emt 0:01:13]} a6 {[%emt 0:02:51]} 18. f5 {[%emt 0:01:47]} (18. Ne2 $14) 18... exf5 $11 {[%emt 0:01:55]} 19. Qf4 {[%emt 0:00:05]} ({White should try} 19. Ne2 $14) 19... Qd7 {[%emt 0:02:44]} 20. Ne2 {[%emt 0:00:08]} c5 {[%emt 0:00:53]} 21. dxc5 $1 {[%emt 0:01:06]} bxc5 {[%emt 0:00:16]} 22. c4 {[%emt 0:00:05]} Nd4 {[%emt 0:01:16]} ({Resist} 22... Nc7 23. cxd5 Rad8 24. d6 $16) (22... d4 $5 {[%cal Rd7e6]} 23. cxb5 Qxb5 $11) 23. Nxd4 {[%emt 0:00:18]} cxd4 {[%emt 0:00:23]} 24. Rxd4 {[%emt 0:01:27]} Rec8 {[%emt 0:00:32]} 25. Rc3 {[%emt 0:00:11] White is more active.} Rc5 $2 {[%emt 0:04:32] [#] This costs Black the game.} (25... Qa7 $1 $14) 26. b4 $18 {[%emt 0:04:32]} Rc6 {[%emt 0:00:09]} 27. Kb2 {[%emt 0:01:25]} Rac8 {[%emt 0:00:21]} (27... Rg6 $142) 28. Rxd5 {[%emt 0:00:24]} Qxd5 {[%emt 0:01:31]} (28... Qe6 29. Rd6 Qe7) 29. cxd5 {[%emt 0:00:08][%cal Bc4d5,Bd5d6,Bd6d7][%mdl 32]} Rxc3 {[%emt 0:00:02]} 30. Qxf5 {[%emt 0:04:35] [#] d6 is the strong threat.} R3c4 {[%emt 0:00:37]} 31. d6 {[%emt 0:01:35]} a5 {[%emt 0:02:34]} 32. d7 {[%emt 0:00:47]} Rd8 {[%emt 0:00:45]} 33. e6 {[%emt 0:00:09] Weighted Error Value: White=0.15 (very precise) /Black=0.84} 1-0

[Event "Kezmarok Chess Open 2022"]
[Site "Kezmarok"]
[Date "2022.09.25"]
[Round "2.8"]
[White "Wisniewski, Michal"]
[Black "Rak, Martin"]
[Result "1-0"]
[ECO "A09"]
[WhiteElo "2152"]
[BlackElo "1805"]
[Annotator "TA"]
[PlyCount "64"]
[EventDate "2022.09.24"]
[EventType "swiss"]
[EventCountry "SVK"]
[SourceTitle "playchess.com"]
[Source "ChessBase"]
[SourceQuality "1"]
[TimeControl "40/5400+30:1800+30"]

{[%evp 9,64,-45,-38,-36,-39,-45,-46,-67,-34,-43,-31,-52,-37,-70,-37,-42,-26,-29,-23,-65,-31,-48,41,29,69,72,382,387,457,457,449,429,442,454,430,435,416,411,2209,1875,2788,1423,1418,1418,1417,1402,1336,1272,1729,1667,2196,1597,2207,2030,6241,11950,1600]} 1. Nf3 d5 2. c4 d4 3. b4 g5 {[%cal Bg7g5,Bg5g4][%mdl 32]} 4. Bb2 Bg7 5. e4 e5 6. d3 {A09: Réti Opening: 1 Nf3 d5 2 c4.} g4 {[#]} 7. Ng1 $146 ({Predecessor:} 7. Nfd2 Ne7 8. Nb3 Ng6 9. N1d2 h5 10. g3 h4 11. Qc2 hxg3 12. fxg3 b6 13. Be2 {0-1 (28) Sergienko,S (2320)-Jurcik,M (2488) Riga 2019}) 7... h5 8. Nd2 {Black is slightly better.} Na6 9. Ba3 Qe7 10. Rb1 c6 11. Qc1 Bh6 12. b5 Nc5 13. bxc6 b6 14. Qb2 Bxd2+ 15. Kxd2 Qg5+ (15... Qf6 16. Bxc5 bxc5 17. Qb5 $16) (15... Rh6 $1 $15) 16. Kc2 $14 {aiming for Bxc5.} Qf6 17. Bxc5 Qxf2+ $2 {[%mdl 8192] A mistake that costs the game.} (17... bxc5 $16 {is a better chance.} 18. c7 Qb6) 18. Ne2 $18 bxc5 19. c7 {And now Qb5+ would win.} f5 20. Qb5+ ({Less strong is} 20. Qb8 fxe4 21. dxe4 (21. Qxa8 exd3+ 22. Kd1 Ne7 $18) 21... Qe3 $18) 20... Kf7 {White must now prevent ...fxe4.} 21. Qc6 fxe4 22. Qxe4 (22. Qxa8 exd3+ 23. Kd1 (23. Kxd3 $2 Nf6 $19) 23... Nf6 $17) 22... Nf6 {Inhibits Qd5+.} 23. Qxa8 {Chess con chili.} Bf5 (23... Re8 $142 24. Rb3 e4 25. dxe4 Kg7) 24. Qxh8 {White threatens Rb7 and mate. White is clearly winning.} Bxd3+ 25. Kxd3 Qf5+ 26. Kd2 Qxb1 {[#]} 27. Qxf6+ $3 Kxf6 28. c8=Q e4 29. Qd8+ Kg6 {[#]} 30. Nxd4 $1 Qb4+ (30... cxd4 31. Qxd4) 31. Ke3 {Threatening mate with Qg8+.} cxd4+ 32. Qxd4 Qe1+ {Weighted Error Value: White=0.09 (flawless) /Black=0.45} 1-0

[Event "Kezmarok Chess Open 2022"]
[Site "Kezmarok"]
[Date "2022.09.25"]
[Round "2.9"]
[White "Smetana, Peter"]
[Black "Kovac, Lubomir"]
[Result "0-1"]
[ECO "C47"]
[WhiteElo "1715"]
[BlackElo "2091"]
[Annotator "NA RC"]
[PlyCount "94"]
[EventDate "2022.09.24"]
[EventType "swiss"]
[EventCountry "SVK"]
[SourceTitle "playchess.com"]
[Source "ChessBase"]
[SourceQuality "1"]
[TimeControl "40/5400+30:1800+30"]

1. e4 e5 2. Nf3 Nc6 3. Nc3 Nf6 4. d4 exd4 5. Nxd4 Bb4 6. Nxc6 bxc6 7. Bd3 d5 8. Bd2 O-O 9. O-O Re8 10. Nxd5 Nxd5 11. exd5 Bxd2 12. Qxd2 cxd5 13. Bb5 Re6 14. Rad1 c6 15. Bd3 Qc7 16. Rfe1 Rb8 17. c3 Rxe1+ 18. Rxe1 Be6 19. Qc2 h6 20. b3 c5 21. Bf5 Rb6 22. Bxe6 Rxe6 23. Rd1 Qe5 24. g3 d4 25. cxd4 cxd4 26. Qc8+ Kh7 27. Qd7 Rd6 28. Qxa7 Qd5 29. Qc7 d3 30. Qc3 f5 31. a4 Qf3 32. Qd2 Re6 33. Qxd3 Re1+ 34. Rxe1 Qxd3 35. Re3 Qd5 36. h4 Kg6 37. Kh2 Kh5 38. Kg1 g5 39. hxg5 hxg5 40. Kh2 f4 41. gxf4 gxf4 42. Rh3+ Kg4 43. f3+ Kg5 44. Kg2 Qxb3 45. Rh1 Qc2+ 46. Kh3 Qf2 47. a5 Qg3# 0-1

[Event "Kezmarok Chess Open 2022"]
[Site "Kezmarok"]
[Date "2022.09.25"]
[Round "2.11"]
[White "Sosovickova, Jana"]
[Black "Hagara, Eduard"]
[Result "1/2-1/2"]
[ECO "B08"]
[WhiteElo "2039"]
[BlackElo "1734"]
[Annotator "NA RC"]
[PlyCount "108"]
[EventDate "2022.09.24"]
[EventType "swiss"]
[EventCountry "SVK"]
[SourceTitle "playchess.com"]
[Source "ChessBase"]
[SourceQuality "1"]
[TimeControl "40/5400+30:1800+30"]

1. e4 {[%emt 0:00:06]} d6 {[%emt 0:00:31]} 2. d4 {[%emt 0:00:17]} Nf6 {[%emt 0:00:26]} 3. Nc3 {[%emt 0:00:11]} g6 {[%emt 0:00:34]} 4. Nf3 {[%emt 0:00:13]} Bg7 {[%emt 0:00:17]} 5. Be3 {[%emt 0:00:15]} O-O {[%emt 0:00:36]} 6. Qd2 {[%emt 0:00:39]} Ng4 {[%emt 0:01:56]} 7. Bg5 {[%emt 0:01:18]} c6 {[%emt 0:04:13]} 8. h3 {[%emt 0:06:38]} Nf6 {[%emt 0:01:46]} 9. e5 {[%emt 0:11:03]} dxe5 {[%emt 0:04:03]} 10. dxe5 {[%emt 0:01:56]} Qxd2+ {[%emt 0:00:34]} 11. Kxd2 {[%emt 0:01:23]} Rd8+ {[%emt 0:13:48]} 12. Bd3 {[%emt 0:02:57]} Nd5 {[%emt 0:03:03]} 13. Nxd5 {[%emt 0:04:10]} Rxd5 {[%emt 0:01:22]} 14. c4 {[%emt 0:01:29]} Rd7 {[%emt 0:01:52]} 15. Rad1 {[%emt 0:05:34]} Na6 {[%emt 0:10:37]} 16. Kc1 {[%emt 0:04:53]} h6 {[%emt 0:07:43]} 17. Bh4 {[%emt 0:02:28]} g5 {[%emt 0:04:33]} 18. Bg3 {[%emt 0:03:32]} Nc5 {[%emt 0:03:28]} 19. Bc2 {[%emt 0:02:45]} Rxd1+ {[%emt 0:03:18]} 20. Rxd1 {[%emt 0:00:07]} Be6 {[%emt 0:01:01]} 21. b3 {[%emt 0:01:49]} Re8 {[%emt 0:08:00]} 22. Nd4 {[%emt 0:07:29]} Bc8 {[%emt 0:01:41]} 23. Nf5 {[%emt 0:00:49]} Ne6 {[%emt 0:06:15]} 24. Nxg7 {[%emt 0:06:06]} Nxg7 {[%emt 0:01:00]} 25. Kb2 {[%emt 0:03:46]} Nf5 {[%emt 0:00:25]} 26. Bh2 {[%emt 0:01:12]} Nh4 {[%emt 0:00:38]} 27. g4 {[%emt 0:06:19]} Kg7 {[%emt 0:01:48]} 28. Bg3 {[%emt 0:01:08]} Ng6 {[%emt 0:00:41]} 29. Bf5 {[%emt 0:02:19]} e6 {[%emt 0:02:18]} 30. Be4 {[%emt 0:02:57]} Nf8 {[%emt 0:01:51]} 31. h4 {[%emt 0:06:11]} Nd7 {[%emt 0:01:23]} 32. h5 {[%emt 0:04:38]} Nc5 {[%emt 0:02:01]} 33. Bg2 {[%emt 0:00:46]} Nd7 {[%emt 0:00:23]} 34. Kc3 {[%emt 0:00:37]} Kf8 {[%emt 0:00:33]} 35. f4 {[%emt 0:00:41]} Kg7 {[%emt 0:00:22]} 36. fxg5 {[%emt 0:02:00]} hxg5 {[%emt 0:00:24]} 37. b4 {[%emt 0:00:48]} Rf8 {[%emt 0:02:07]} 38. c5 {[%emt 0:01:31]} a6 {[%emt 0:02:12]} 39. Rd6 {[%emt 0:04:53]} Rh8 {[%emt 0:03:20]} 40. Bf1 {[%emt 0:00:47]} Rf8 {[%emt 0:00:42]} 41. Bc4 {[%emt 0:31:27]} Re8 {[%emt 0:30:34]} 42. a4 {[%emt 0:00:00]} Kh6 {[%emt 0:00:00]} 43. Kd4 {[%emt 0:00:00]} Kg7 {[%emt 0:00:00]} 44. Be1 {[%emt 0:00:00]} Nf8 {[%emt 0:00:00]} 45. b5 {[%emt 0:00:00]} axb5 {[%emt 0:00:00]} 46. axb5 {[%emt 0:00:00]} Bd7 {[%emt 0:00:00]} 47. b6 {[%emt 0:00:00]} Ra8 {[%emt 0:00:00]} 48. Bc3 {[%emt 0:00:00]} Re8 {[%emt 0:00:00]} 49. Ke4 {[%emt 0:00:00]} Bc8 {[%emt 0:00:00]} 50. Bd2 {[%emt 0:00:00]} Kh6 {[%emt 0:00:00]} 51. Be3 {[%emt 0:00:00]} Bd7 {[%emt 0:00:00]} 52. Rd2 {[%emt 0:00:00]} Re7 {[%emt 0:00:00]} 53. Ra2 {[%emt 0:00:00]} Nh7 {[%emt 0:00:00]} 54. Bd4 {[%emt 0:00:00]} Kg7 {[%emt 0:00:00]} 1/2-1/2

[Event "Kezmarok Chess Open 2022"]
[Site "Kezmarok"]
[Date "2022.09.25"]
[Round "2.12"]
[White "Striskova, Lucia"]
[Black "Juracak, David"]
[Result "1/2-1/2"]
[ECO "C42"]
[WhiteElo "1866"]
[BlackElo "1708"]
[Annotator "NA RC COMBH"]
[PlyCount "102"]
[EventDate "2022.09.24"]
[EventType "swiss"]
[EventCountry "SVK"]
[SourceTitle "playchess.com"]
[Source "ChessBase"]
[SourceQuality "1"]
[TimeControl "40/5400+30:1800+30"]

1. e4 {[%emt 0:00:16]} e5 {[%emt 0:00:06]} 2. Nf3 {[%emt 0:00:23]} Nf6 {[%emt 0:00:07]} 3. Nxe5 {[%emt 0:00:03]} d6 {[%emt 0:00:08]} 4. Nf3 {[%emt 0:00:02]} Nxe4 {[%emt 0:00:10]} 5. d4 {[%emt 0:01:02]} d5 {[%emt 0:00:20]} 6. Bd3 {[%emt 0:00:04]} Bd6 {[%emt 0:00:25]} 7. O-O {[%emt 0:00:32]} O-O {[%emt 0:00:57]} 8. c4 {[%emt 0:00:41]} c6 {[%emt 0:00:19]} 9. Nc3 {[%emt 0:00:07]} Nxc3 {[%emt 0:08:21]} 10. bxc3 {[%emt 0:00:37]} h6 {[%emt 0:00:17]} 11. h3 {[%emt 0:04:20]} Nd7 {[%emt 0:00:32]} 12. Qb3 {[%emt 0:03:20]} Nf6 {[%emt 0:00:26]} 13. Rb1 {[%emt 0:00:34]} Rb8 {[%emt 0:01:19]} 14. Ba3 {[%emt 0:03:25]} Nh5 {[%emt 0:03:33]} 15. Bxd6 {[%emt 0:04:55]} Qxd6 {[%emt 0:00:17]} 16. cxd5 {[%emt 0:00:06]} Nf4 {[%emt 0:01:49]} 17. c4 {[%emt 0:02:22]} cxd5 {[%emt 0:00:50]} 18. c5 {[%emt 0:01:06]} Qf6 {[%emt 0:00:33]} 19. Bc2 {[%emt 0:00:43]} Ne2+ {[%emt 0:04:24]} 20. Kh1 {[%emt 0:00:37]} Nxd4 {[%emt 0:00:21]} 21. Nxd4 {[%emt 0:04:38]} Qxd4 {[%emt 0:00:33]} 22. Rbd1 {[%emt 0:00:07]} Qxc5 {[%emt 0:00:31]} 23. Rxd5 {[%emt 0:00:03]} Qc6 {[%emt 0:01:49]} 24. Qd3 {[%emt 0:00:47]} g6 {[%emt 0:00:21]} 25. Bb3 {[%emt 0:03:24]} Kh7 {[%emt 0:06:04]} 26. Rd6 {[%emt 0:04:58]} Bf5 {[%emt 0:01:22]} 27. Qd2 {[%emt 0:01:21]} Qb5 {[%emt 0:02:14]} 28. Re1 {[%emt 0:02:51]} Rbe8 {[%emt 0:08:08]} 29. Rd5 {[%emt 0:03:41]} Qb6 {[%emt 0:01:50]} 30. Rxe8 {[%emt 0:03:13]} Rxe8 {[%emt 0:00:18]} 31. Rd6 {[%emt 0:00:19]} Qc7 {[%emt 0:01:38]} 32. f4 {[%emt 0:01:53]} Qe7 {[%emt 0:01:37]} 33. Kh2 {[%emt 0:00:27]} Rf8 {[%emt 0:03:37]} 34. g4 {[%emt 0:03:00]} Bc8 {[%emt 0:00:28]} 35. f5 {[%emt 0:04:30]} Qe5+ {[%emt 0:00:27]} 36. Kh1 {[%emt 0:00:20]} b6 {[%emt 0:01:56]} 37. fxg6+ {[%emt 0:12:50]} fxg6 {[%emt 0:00:27]} 38. Rd3 {[%emt 0:00:25]} Rf1+ {[%emt 0:07:00]} 39. Kg2 {[%emt 0:00:04]} Re1 {[%emt 0:00:07]} 40. Bd1 {[%emt 0:03:08]} Qe7 {[%emt 0:08:43]} 41. Bf3 {[%emt 0:30:45]} Re5 {[%emt 0:34:30]} 42. Rd8 {[%emt 0:01:58]} Rc5 43. Rd3 Qc7 {[%emt 0:04:52]} 44. Bd1 {[%emt 0:02:24]} Bb7+ {[%emt 0:04:22]} 45. Kg1 {[%emt 0:00:13]} Bc6 {[%emt 0:00:56]} 46. Re3 {[%emt 0:02:44]} Rd5 {[%emt 0:01:57]} 47. Qe2 {[%emt 0:00:08]} Rd7 {[%emt 0:00:23]} 48. Bc2 {[%emt 0:01:59]} Rg7 {[%emt 0:01:31]} 49. h4 {[%emt 0:07:55]} Kh8 {[%emt 0:02:07]} 50. Qf2 {[%emt 0:00:36]} Qd6 {[%emt 0:01:17]} 51. Rd3 {[%emt 0:06:28]} Qc5 1/2-1/2

[Event "Kezmarok Chess Open 2022"]
[Site "Kezmarok"]
[Date "2022.09.25"]
[Round "2.13"]
[White "Belus, Benjamin"]
[Black "Velychko, Sofiya"]
[Result "1-0"]
[ECO "A20"]
[WhiteElo "1932"]
[BlackElo "1371"]
[Annotator "TA"]
[PlyCount "77"]
[EventDate "2022.09.24"]
[EventType "swiss"]
[EventCountry "SVK"]
[SourceTitle "playchess.com"]
[Source "ChessBase"]
[SourceQuality "1"]
[TimeControl "40/5400+30:1800+30"]

{[%evp 14,77,25,16,46,49,36,40,52,43,56,55,51,-60,108,107,107,112,133,131,144,128,139,136,125,114,120,121,115,126,125,121,111,114,112,56,58,43,65,14,127,132,194,183,184,175,287,275,376,367,1023,1013,983,952,1187,1133,1788,1790,1720,1695,29971,29964,29993,29994,29994,29995]} 1. c4 {[%emt 0:17:27]} e5 {[%emt 0:00:12]} 2. g3 {[%emt 0:00:01]} Nf6 {[%emt 0:00:24]} 3. Bg2 {[%emt 0:00:02]} Nc6 {[%emt 0:00:32]} 4. Nc3 {[%emt 0:00:11]} Bc5 {[%emt 0:00:55]} 5. e3 {[%emt 0:00:05][%cal Be2e3,Be3d4][%mdl 32]} O-O {[%emt 0:00:48]} 6. Nge2 {[%emt 0:00:02]} Re8 {[%emt 0:02:34]} 7. O-O {[%emt 0:00:05]} d6 {[%emt 0:00:52]} 8. d4 {[%emt 0:00:19]} exd4 {[%emt 0:01:03] A25: English Opening vs King's Indian with ...Nc6 but without early d3.} 9. exd4 {[%emt 0:00:02]} Bb6 {[%emt 0:01:26]} 10. Bg5 {[%emt 0:01:12]} h6 {[%emt 0:01:25] White is slightly better.} 11. Bxf6 {[%emt 0:00:09]} Qxf6 {[%emt 0:00:15]} 12. Nd5 {[%emt 0:00:09]} Qd8 {[%emt 0:02:42]} 13. b4 {[%emt 0:01:02] [#]} (13. Nxb6 $14 axb6 14. Nc3) 13... a5 $146 {[%emt 0:01:55]} (13... Bg4 $15 {keeps the upper hand.} 14. f3 Bf5) ({Predecessor:} 13... Ne7 14. Nxb6 axb6 15. Nc3 c6 16. b5 Bf5 17. Re1 Qd7 18. Qb3 Kf8 19. Na4 Ra5 20. Nxb6 {1-0 (53) Colson,A (2104)-Launiau,S (2118) Issy les Moulineaux 2004}) 14. Nxb6 {[%emt 0:09:15]} cxb6 {[%emt 0:00:13]} 15. b5 {[%emt 0:00:05]} Ne7 {[%emt 0:01:21]} 16. Nf4 {[%emt 0:03:22]} Rb8 {[%emt 0:02:27]} 17. Re1 {[%emt 0:01:26]} Bf5 {[%emt 0:01:23]} 18. Rc1 {[%emt 0:02:03]} Qd7 {[%emt 0:01:07]} 19. a4 {[%emt 0:02:40]} Ng6 {[%emt 0:01:55]} 20. Nd5 {[%emt 0:00:25]} Rxe1+ {[%emt 0:01:31]} 21. Qxe1 {[%emt 0:00:03]} Re8 {[%emt 0:00:31]} 22. Qd2 {[%emt 0:00:35]} Qd8 {[%emt 0:01:13]} 23. Re1 {[%emt 0:00:02] [#] Strongly threatening Rxe8+.} Ne7 {[%emt 0:02:28]} 24. Qe3 {[%emt 0:02:58] White is much more active.} (24. Nf4 $16) 24... Kf8 $1 $14 {[%emt 0:03:14]} 25. Nc3 {[%emt 0:08:11]} Qc8 {[%emt 0:02:58]} 26. Bd5 {[%emt 0:08:12]} ({Better is} 26. h3 $14) 26... Bd7 {[%emt 0:01:54]} ({Much less strong is} 26... Nxd5 27. Qxe8+ Qxe8 28. Rxe8+ Kxe8 29. Nxd5 $16) (26... Bc2 $11 {keeps the balance.}) 27. Qf4 $36 {[%emt 0:04:50][%csl Gd5,LRd6,LRf7][%cal Rf4f7][%mdl 2048] [#] White is in control.} Nxd5 {[%emt 0:02:03]} (27... Nf5 $16 {is a better defense.} 28. Re3 Rxe3 29. fxe3 Be6) 28. Rxe8+ $18 {[%emt 0:05:05]} Qxe8 {[%emt 0:00:16]} 29. Nxd5 $16 {[%emt 0:00:04][%mdl 4096] Endgame KQB-KQN} Qe6 {[%emt 0:04:34]} (29... Kg8 $142 30. Nxb6 (30. Qxd6 {is a self mate.} Qe1+ 31. Kg2 Qe4+ 32. f3 Qe2+ 33. Kg1 Bh3 34. Qd8+ Kh7) 30... Bh3) 30. Nxb6 $18 {[%emt 0:00:39]} Qe1+ {[%emt 0:06:56]} 31. Kg2 {[%emt 0:00:03]} Bh3+ {[%emt 0:11:56]} (31... Qe6 32. c5 dxc5) 32. Kxh3 {[%emt 0:07:40]} Qf1+ {[%emt 0:00:10]} 33. Kg4 {[%emt 0:02:32]} Qe2+ {[%emt 0:00:40]} 34. f3 {[%emt 0:04:46]} Qe6+ {[%emt 0:03:19]} 35. Qf5 {[%emt 0:00:50]} h5+ {[%emt 0:00:43]} 36. Kf4 {[%emt 0:00:12]} Qh6+ {[%emt 0:01:50]} 37. Qg5 {[%emt 0:00:16] White mates.} Qe6 {[%emt 0:00:29]} 38. Qd8+ {[%emt 0:00:10]} Qe8 {[%emt 0:00:06]} 39. Nd7+ {[%emt 0:00:15] Weighted Error Value: White=0.17 (very precise) /Black=0.60} 1-0